Cogmind - Beta 14 @@@ ROGUE MODE // 2024.12.11 @ 17:41:40 Player: porter Result: Destroyed by 8T-YZI(R) with Subdweller Laser Performance ------------- Evolutions (0) 0 Regions Visited (3) 600 Robots Destroyed (18) 90 Value Destroyed (614) 614 Prototype IDs (0) 0 Alien Tech Used (0) 0 Bonus (172) 172 TOTAL SCORE: 1476 Bonus ------- Follower Combat Kills 200 Friendly Fire -28 Cogmind --------- Core Integrity 0/250 Matter 238/300 Energy 240/240 System Corruption 0% Temperature Cool (6) Movement Walking (190) Ox1 Location -10/Subcaves Parts ------- > --- POWER (1) -------- Nuclear Core > --- PROPULSION (2) --- Aluminum Leg Carbon-fiber Leg > --- UTILITY (2) ------ Large Storage Unit Light Armor Plating > --- WEAPON (2) ------- Beamcaster Light Assault Rifle > --- INVENTORY (15) --- Makeshift Leg Structural Scanner Sensor Array Improved Terrain Scanner EM Pulse Gun Minigun Mining Laser Peak State ------------ > --- POWER ------------ Light Angular Momentum Engine > --- PROPULSION ------- Carbon-fiber Leg Carbon-fiber Leg > --- UTILITY ---------- Large Storage Unit Structural Scanner > --- WEAPON ----------- Assault Rifle Heavy Assault Rifle > --- INVENTORY -------- Nuclear Core Aluminum Leg Makeshift Leg Sensor Array Improved Terrain Scanner EM Pulse Gun Beamcaster Light Assault Rifle Minigun Mining Laser [Rating: 18] Favorites ----------- Power Light Ion Engine Engine Light Ion Engine Power Core Nuclear Core Propulsion Aluminum Leg Leg Aluminum Leg Utility Large Storage Unit Device Sensor Array Storage Large Storage Unit Protection Light Armor Plating Weapon Assault Rifle Energy Gun Beamcaster Ballistic Gun Assault Rifle Special Weapon Mining Laser Build | -11 -10 -10 -10 ------- Run | Yrd Mat Min Sub Slots Evolved . | . . . . Power . | . . . . Propulsion . | . . . . Utility . | . . . . Weapon . | . . . . Parts Attached 26 | 6 2 11 7 Power 3 | 1 . 1 1 Engine 2 | 1 . 1 . Core 1 | . . . 1 Reactor . | . . . . Propulsion 6 | 2 . 3 1 Treads . | . . . . Leg 6 | 2 . 3 1 Wheel . | . . . . Hover . | . . . . Flight . | . . . . Utility 5 | 1 1 2 1 Device 2 | . . 2 . Storage 2 | 1 1 . . Processor . | . . . . Hackware . | . . . . Protection 1 | . . . 1 Artifact . | . . . . Weapon 12 | 2 1 5 4 Energy Gun 2 | 1 . . 1 Energy Cannon . | . . . . Ballistic Gun 7 | 1 1 2 3 Ballistic Cannon . | . . . . Launcher . | . . . . Special Weapon 3 | . . 3 . Impact Weapon . | . . . . Slashing Weapon . | . . . . Piercing Weapon . | . . . . Special Melee Weapon . | . . . . Unidentified Prototypes . | . . . . Parts Lost 5 | . . 1 4 Power 1 | . . . 1 Propulsion 1 | . . . 1 Utility . | . . . . Weapon 3 | . . 1 2 Highest Loss Streak 1 | . . 1 1 To Critical Strikes . | . . . . Average Slot Usage (%) 94 | . 85 99 90 Engine 12 | . 14 14 2 Leg 27 | . 28 28 26 Device 10 | . . 13 12 Storage 14 | . 14 14 14 Energy Gun 1 | . 2 . 7 Ballistic Gun 21 | . 25 21 18 Special Weapon 4 | . . 7 . Peak Build Rating 18 | 6 7 17 18 Average Rating 10 | 4 6 10 15 On Entrance 7 | . 6 6 17 Naked Turns . | . . . . Heaviest Build 36 | 12 26 33 36 Greatest Support 30 | 20 20 30 30 Greatest Overweight (x) 2 | 2 1 1 1 Average Overweight (x) . | . . 1 . Largest Inventory Capacity 15 | 8 15 15 15 Average Capacity 13 | 7 8 15 15 Most Carried 12 | 3 6 12 10 Average Carried 7 | 2 3 8 8 Final Capacity 15 | 8 15 15 15 Final Carried 10 | 3 6 10 7 Class Distribution -------------------- 95% | Mutant 4% | Scavenger-Mutant Dominant Class ---------------- Mutant | -10/Materials Mutant | -10/Mines Mutant | -10/Subcaves Resources | -11 -10 -10 -10 ----------- Run | Yrd Mat Min Sub Matter Collected 630 | 230 37 232 131 Remotely . | . . . . Salvage Created 723 | . 37 363 323 Parts 42 | . 1 22 19 Haulers Intercepted . | . . . . Recyclers Shooed . | . . . . Parts Field Recycled . | . . . . Retrieved Matter . | . . . . Parts Self-Destructed 6 | . . . 6 Prevented . | . . . . Kills | -11 -10 -10 -10 ------- Run | Yrd Mat Min Sub Combat Hostiles Destroyed 16 | . 1 8 7 Guns 16 | . 1 8 7 Classes Destroyed 3 | . 1 1 1 Tunneler 2 | . . 2 . Grunt 11 | . 1 8 2 Subdweller 5 | . . . 5 Best Kill Streak 3 | . 1 3 2 Combat Bots Only 2 | . 1 2 2 Max Kills in Single Turn 1 | . 1 1 1 Gunslinging . | . . . . Exploded . | . . . . Melee . | . . . . Uniques/NPCs Destroyed . | . . . . Combat | -11 -10 -10 -10 -------- Run | Yrd Mat Min Sub Hostile Shots Fired 95 | . 12 30 53 Missed 27 | . 4 10 13 Damage Taken 1146 | . 84 240 822 Core 253 | . 20 47 186 Absorbed by Shields . | . . . . Core Remaining (%) 100 | 100 . . . Volleys Fired 100 | . 4 53 43 Largest 2 | . 2 2 2 Hottest 200 | . 40 200 98 Shots Fired 163 | . 8 87 68 Gun 130 | . 8 54 68 Cannon . | . . . . Launcher . | . . . . Special 33 | . . 33 . Kinetic 108 | . 8 54 46 Thermal 55 | . . 33 22 Explosive . | . . . . Electromagnetic . | . . . . Robot Hit Streak 7 | . 4 5 7 Robot Miss Streak 4 | . 2 4 3 Penetration Max . | . . . . Secondary Targets 2 | . . 1 1 Max Gunslinging Chain 1 | . . 1 1 Shots Hit Robots 79 | . 5 32 42 Core Hits 38 | . 2 22 14 Critical Kills 1 | . . 1 . Critical Parts Destroyed . | . . . . Critical Strikes 5 | . . 1 4 Burn 4 | . . . 4 Destroy 1 | . . 1 . Melee Attacks . | . . . . Impact . | . . . . Slashing . | . . . . Piercing . | . . . . Sneak Attacks . | . . . . Combat Hostiles . | . . . . Follow-up Attacks . | . . . . Damage Inflicted 1109 | 3 55 432 619 Guns 1047 | . 48 380 619 Cannons . | . . . . Explosions . | . . . . Melee . | . . . . Ramming 14 | 3 7 4 . Kinetic 771 | . 48 380 343 Thermal 324 | . . 48 276 Explosive . | . . . . Electromagnetic . | . . . . Impact . | . . . . Slashing . | . . . . Piercing . | . . . . Highest Corruption . | . . . . Average Corruption . | . . . . Corruption Purged . | . . . . Corruption Blocked . | . . . . Overload Shots . | . . . . Overflow Damage . | . . . . Projectiles . | . . . . Explosions . | . . . . Melee . | . . . . Knockbacks . | . . . . Impact . | . . . . Kinetic . | . . . . Secondary . | . . . . Self-Inflicted Damage . | . . . . Shots . | . . . . Rammed . | . . . . Targets Rammed 3 | 1 1 1 . Kicked 3 | 1 1 1 . Crushed . | . . . . Highest Temperature 280 | . 6 280 22 Average Temperature 75 | . 6 80 13 Received Heat Transfer 441 | . 36 150 255 Effects 1 | . . 1 . Energy Bleed 1 | . . 1 . Siege Activations . | . . . . Robots Corrupted . | . . . . Combat Hostiles . | . . . . Parts Fried . | . . . . Impact Corruptions . | . . . . Robots Melted . | . . . . Combat Hostiles . | . . . . Parts Melted 1 | . . 1 . Heat Transferred 877 | . . 100 777 Parts Sabotaged . | . . . . Parts Stolen . | . . . . Parts Stripped . | . . . . Power Chain Reactions . | . . . . Alert | -11 -10 -10 -10 ------- Run | Yrd Mat Min Sub Peak Influence 239 | . 69 239 . Initial 5 | . . 5 . Average 51 | . 25 62 . Maximum Alert Level 1 | . . 1 . Low Security (%) 94 | 100 100 91 . Level 1 5 | . . 8 . Level 2 . | . . . . Level 3 . | . . . . Level 4 . | . . . . Level 5 . | . . . . High Security . | . . . . Max Security . | . . . . Squads Dispatched 3 | . 2 1 . Investigation 3 | . 2 1 . Extermination . | . . . . Reinforcement . | . . . . Assault . | . . . . Garrison . | . . . . Intercept . | . . . . Searches Triggered . | . . . . Construction Impeded . | . . . . Haulers Reinforced . | . . . . Active Scanning Responses . | . . . . Cargo Convoy Interrupts . | . . . . Stealth | -11 -10 -10 -10 --------- Run | Yrd Mat Min Sub Distress Signals 1 | . 1 . . Communications Jammed . | . . . . Distress Signals . | . . . . Times Spotted 37 | . 10 17 10 Peak Tracking Total 5 | . 5 3 3 Tactical Retreats 1 | . 1 . . Traps | -11 -10 -10 -10 ------- Run | Yrd Mat Min Sub Traps Triggered 1 | . 1 . . Indirectly . | . . . . Trap Hack Attempts . | . . . . Triggered . | . . . . Disarmed . | . . . . Reprogrammed . | . . . . Reused . | . . . . Traps Extracted . | . . . . Installed . | . . . . Triggered . | . . . . Machines | -11 -10 -10 -10 ---------- Run | Yrd Mat Min Sub Machines Disabled . | . . . . Max in Single Turn . | . . . . Machines Repaired . | . . . . Machines Dismantled . | . . . . Machines Sabotaged . | . . . . Overloaded Fab Kills . | . . . . Hacking | -11 -10 -10 -10 --------- Run | Yrd Mat Min Sub Machines Accessed 4 | . 3 1 . Terminals 3 | . 3 . . Fabricators . | . . . . Repair Stations . | . . . . Recycling Units . | . . . . Scanalyzers . | . . . . Garrison Access . | . . . . Total Hacks 10 | . 9 1 . Successful 2 | . 1 1 . Failed 8 | . 8 . . Catastrophic 3 | . 3 . . Database Lockouts . | . . . . Manual 6 | . 6 . . Terminals 9 | . 9 . . Fabricators . | . . . . Repair Stations . | . . . . Recycling Units . | . . . . Scanalyzers . | . . . . Garrison Access . | . . . . Terminal Hacks 2 | . 1 1 . Open Door 1 | . . 1 . Locate Traps 1 | . 1 . . Fabricator Hacks . | . . . . Repair Station Hacks . | . . . . Recycling Unit Hacks . | . . . . Scanalyzer . | . . . . Garrison Access Hacks . | . . . . Unauthorized Hacks . | . . . . Terminals . | . . . . Fabricators . | . . . . Repair Stations . | . . . . Recycling Units . | . . . . Scanalyzers . | . . . . Garrison Access . | . . . . Data Cores Recovered . | . . . . Used . | . . . . Hacking Detections 3 | . 3 . . Full Trace Events 1 | . 1 . . Feedback Events . | . . . . Feedback Blocked . | . . . . Robot Schematics Acquired . | . . . . Robots Built . | . . . . Authchips . | . . . . Time . | . . . . Total Robot Build Rating . | . . . . Part Schematics Acquired . | . . . . Parts Built . | . . . . Authchips . | . . . . Time . | . . . . Total Part Build Rating . | . . . . Parts Repaired . | . . . . Time . | . . . . Parts Recycled . | . . . . Recycled Matter . | . . . . Retrieved Matter . | . . . . Retrieved Components . | . . . . Parts Scanalyzed . | . . . . Part Schematics Acquired . | . . . . Parts Damaged . | . . . . Bothacking | -11 -10 -10 -10 ------------ Run | Yrd Mat Min Sub Used RIF Installer . | . . . . Robots Hacked . | . . . . Non-combat . | . . . . Combat . | . . . . Robot Hacks Applied . | . . . . Relay Couplers Released . | . . . . Fabnet Peak Effective % . | . . . . Robots Rewired . | . . . . Allies Hacked . | . . . . Hacks Repelled . | . . . . Allies | -11 -10 -10 -10 -------- Run | Yrd Mat Min Sub Total Allies 2 | . . 2 . Largest Group 2 | . . 2 . Highest-Rated Group 42 | . . 42 . Highest-Rated Ally 31 | . . 31 . Total Orders . | . . . . Ally Attacks 26 | . . 26 . Total Damage 414 | . . 414 . Kills 8 | . . 8 . Allies Corrupted . | . . . . Allies Melted . | . . . . Intel | -11 -10 -10 -10 ------- Run | Yrd Mat Min Sub Robot Analysis Total . | . . . . Derelict Logs Recovered 2 | . . 1 1 Drone Launches . | . . . . Drone Recoveries . | . . . . Exploration | -11 -10 -10 -10 ------------- Run | Yrd Mat Min Sub Turns Passed 3210 | 65 709 1981 455 Spaces Moved 1399 | 43 291 861 204 Core 4 | 4 . . . Treads . | . . . . Legs 1395 | 39 291 861 204 Wheels . | . . . . Hover . | . . . . Flight . | . . . . Fastest Speed 50 | 50 120 190 120 Average Speed 170 | 123 124 190 161 Slowest Speed 190 | 190 190 190 190 Overloaded Moves . | . . . . Propulsion Burnouts . | . . . . Robots Hopped . | . . . . Cave-ins Triggered . | . . . . Exploration Rate (%) 39 | 4 42 96 17 Regions Visited 3 Branch Regions 2 Pre-discovered Areas 1 | . . 1 . Known Exits Taken . | . . . . Unknown Exits Taken 3 | 1 1 1 . Scrap Searched 4 | . . 2 2 Spaces Dug 9 | . . 9 . Terrain Destroyed 22 | . . 22 . Melee . | . . . . Projectile 22 | . . 22 . AOE . | . . . . Terrain Rammed . | . . . . Walls Destroyed . | . . . . Machines Disabled . | . . . . Actions | -11 -10 -10 -10 --------- Run | Yrd Mat Min Sub Total 2002 | 52 631 1058 261 Wait 450 | . 330 114 6 Move 1396 | 42 290 860 204 Hop . | . . . . Pick Up 18 | 3 3 11 1 Fast Attach 9 | 6 1 2 . Attach 7 | . . 3 4 Detach 1 | . . 1 . Swap 10 | . 1 6 3 Drop 8 | . 1 7 . Fire 100 | . 4 53 43 Melee . | . . . . Ram . | . . . . Kick 3 | 1 1 1 . Crush . | . . . . Escape Stasis . | . . . . Rewire . | . . . . Trap . | . . . . Miscellaneous . | . . . . Route ------- -11/Scrapyard -10/Materials (discovered 2 exits: [*Mat] / *Min) -10/Mines (discovered 3 exits: [*Mat x2] / [*Sub]) -10/Subcaves (discovered 1 exit: [*Mat]) History --------- Turn | Location | Event 31 | -11/Scrapyard | Discovered new exit (range 16) 66 | -11/Scrapyard | Entered Materials 193 | -10/Materials | Discovered new exit (range 16) 317 | -10/Materials | Build established: Mutant 711 | -10/Materials | Discovered new exit (range 6) 775 | -10/Materials | Entered Mines 873 | -10/Mines | Excavation squad dispatched 873 | -10/Mines | A large section of the Mines collapsed 1123 | -10/Mines | Excavation squad dispatched 1158 | -10/Mines | Learned location of Zion (-6) 1373 | -10/Mines | Excavation squad dispatched 1431 | -10/Mines | Discovered new exit (range 15) 1557 | -10/Mines | Joined a pair of Derelicts in attacking an 0b10 outpost 1774 | -10/Mines | Discovered new exit (range 7) 2062 | -10/Mines | Met a Derelict shopkeep closing up shop 2736 | -10/Mines | Discovered new exit (range 5) 2756 | -10/Mines | Entered Subcaves 2769 | -10/Subcaves | Learned Materials stockpile data 2887 | -10/Subcaves | Core integrity fell below 50% 2921 | -10/Subcaves | Discovered new exit (range 9) 2986 | -10/Subcaves | Core integrity fell below 20% 3012 | -10/Subcaves | Shifting Twisted Machinery released Battle Cannon 3211 | -10/Subcaves | Destroyed by 8T-YZI(R) with Subdweller Laser Last Messages --------------- 02937_ Found 59 Matter. 02938_ Acquired 59 matter. 02975_ Carbon-fiber Leg destroyed. 02980_ G-34 Mercenary destroyed. 02980_ Switching to secondary target: G-47 Trooper. 02983_ G-47 Trooper suffers critical hit (Burn). 02984_ Sml. Laser fries itself beyond repair. 02984_ Aluminum Leg fries itself beyond repair. 02986_ G-47 Trooper destroyed. 03000_ Lgt. Nuclear Core fries itself beyond repair. 03008_ Acquired 30 matter. Battle Cannon falls loose from the Twisted Machinery. 03100_ Hvy. Assault Rifle destroyed. 03108_ TJ-AMW(R) suffers critical hit (Burn). 03123_ TJ-AMW(R) destroyed. 03145_ AZ-5OZ(R) affixes Scrap Shield Fragment to Scrap Shield. 03147_ AZ-5OZ(R) suffers critical hit (Burn). 03153_ AZ-5OZ(R) affixes Scrap Shield Fragment to Scrap Shield. 03155_ AZ-5OZ(R) destroyed. 03162_ Acquired Lgt. Armor Plating. Map ----- +----------------------------------------------------+ | ???????????" "" ##" ##### "####???????????????? | | ???????????""???#### ##### "####???????????????? | | ???????????????### #### """###??????????????? | | ???????????????### " ###### "####?????????????? | | ??????????? "?## " ####### " ###?????????????? | | ???????????## "### "#####?####" ##?????????????? | | ???????????## "## "#####??##"" ###?????????????? | | ???????????## ""## #####??##"" ####?????????????? | | ???????????## """ ######## ##??????????????? | | ???????????## """ " #######* "####????????????? | | ???????????## """ """ # %! #####???????????? | | ???????????### """ =%! ###???????????? | | ???????????##### "" # ##! & ##???????????? | | ????????????##### ] ### ##### #####???????????? | | ??????????????### ### ##### ######???????????? | | ???????????????### ### ##########??????????????? | | ??????????????### ##########???????????????? | | ?????????????##### ###????????????????????? | | ????????????#### # ## ##????????????????????? | | ???????????#### ### ###????????????????????? | | ???????????### ##### ######?????????????????? | | ???????????## #### #########?????????????? | | ???????????#### ### #######????????????? | | ???????????#### R ### ###????????????? | | ?????????????## % ### ##????????????? | | ?????????????### @ ### ##????????????? | | ?????????????### ## ###???????????? | | ??????????????### ### ###???????????? | | ??????????????### ##### ##???????????? | | ??????????????## ##### ##???????????? | | ??????????????## ##?## ###???????????? | | ??????????????## ######### ######???????????? | | ??????????????### ######### #####????????????? | | ??????????????############# ## ###????????????? | | ???????????????############ ## ##????????????? | | ?????????????????### ### ##????????????? | | ????????????????### ###????????????? | | ????????????????### < ###????????????? | | ????????????????## ## ##?????????????? | | ????????????????## ###### ###?????????????? | | ????????????????## ##########?????????????? | | ???????????????### ##??#####??????????????? | | ??????????????##### ######?????????????????? | | ??????????????### ## ##########?????????????? | | ??????????????## !"##" ## ######?????????????? | | ??????????????### ##?????????????? | | ??????????????## # #" # ###?????????????? | | ??????????????###]###" # # ###?????????????? | | ??????????????######### ## ###?????????????? | | ???????????????#######" ### ###?????????????? | +----------------------------------------------------+ Best States ------------- Heat Dissipation 25 Energy Generation 18 Energy Capacity 240 Matter Stores 300 Matter Capacity 300 Sight Range 16 Robot Scan Range 14 Terrain Scan Density 10 Armor Coverage 150 Evasion (%) 55 Item Schematics ----------------- None Robot Schematics ------------------ None Fabricated ------------ Nothing Alien Tech Used ----------------- None Achievements -------------- None Challenges ------------ None Game ------ Seed VariableAutogunRigger Manual? 0 Play Time 00:22:26 Cumulative 9.9 hours Start 2024.12.11 @ 17:17:30 End 2024.12.11 @ 17:41:40 Sessions 1 Manual Loads 0 Difficulty Rogue Special Mode None Game No. 14 Rogue 8 Adventurer 6 Explorer 0 Win Type - Total 0 Types 0/0/0/0/0/0/0/0/0 Lore% 11 Gallery% 17 Achievement% 17 Wizard Run 0 Options --------- Layout 1 ASCII 0 Keyboard 0 Movement Numpad Keybinds 0 Fullscreen 1 Font 32/SmallcapsGlow Map View 77x35 Zoom Use 0% Tactical HUD 1 Map Filters NONE Filters NONE Steam 1 RUN: 416e6a86-8226-48ee-9b37-09573b38bd73